bitfinex-derivatives/quotes_ETHF0:USTF0_20250828
["timestamp","ask_amount","ask_price","bid_price","bid_amount"]
[1756401689612,2.05968,4476.0,4475.9,1.6267]
[1756401691615,0.40208,4476.0,4475.9,1.6267]
[1756401692115,1.06098,4476.0,4475.9,1.6267]
[1756401692312,2.05968,4476.0,4475.9,1.6267]
[1756401692509,3.2078,4476.6,4475.9,1.6267]
[1756401692821,0.402,4476.9,4476.8,1.6267]
[1756401693213,2.0596,4476.9,4476.8,1.6267]
[1756401694615,2.0596,4476.9,4476.8,4.8345]
[1756401695920,2.0596,4476.9,4476.8,3.2078]
[1756401696419,2.02964,4476.5,4476.4,2.02875]
[1756401696615,2.02964,4476.5,4476.4,1.6267]
[1756401697415,1.02864,4476.5,4476.4,1.6267]
[1756401698014,0.40203,4476.6,4476.5,0.9464]
[1756401698212,1.001,4477.1,4476.5,0.6325]
[1756401698414,2.02959,4477.1,4477.0,1.5789]
[1756401698614,1.6276,4477.1,4477.0,1.5789]
[1756401698814,0.40197,4477.4,4477.3,0.6325]
[1756401699015,0.40196,4477.5,4477.4,0.9464]
[1756401699309,1.00475,4478.1,4477.4,0.9464]
[1756401699310,0.40194,4477.7,4477.5,0.9464]
[1756401699515,1.40294,4477.7,4477.6,1.5789]
[1756401699717,2.02954,4477.7,4477.6,1.5789]
[1756401700822,2.02955,4477.5,4477.4,3.2078]
[1756401701117,2.02955,4477.5,4477.4,4.7867]
[1756401703823,2.02955,4477.5,4477.4,3.2078]
[1756401704319,2.02955,4477.5,4477.4,4.7867]
[1756401704714,1.02855,4477.5,4477.4,4.7867]
[1756401704917,0.40194,4477.6,4477.4,5.18866]
[1756401705119,0.40194,4477.6,4477.5,1.5789]
[1756401705520,1.02854,4477.6,4477.5,1.5789]
[1756401706015,2.02954,4477.6,4477.5,1.5789]
[1756401706220,1.02854,4477.6,4477.5,1.5789]
[1756401706922,0.40194,4477.6,4477.5,1.5789]
[1756401707722,1.02854,4477.6,4477.5,1.5789]
[1756401708424,2.02954,4477.6,4477.5,1.5789]
[1756401708924,1.02854,4477.6,4477.5,1.5789]
[1756401709121,0.00463045,4478.6,4477.5,0.9464]
[1756401709327,2.02946,4478.5,4478.4,1.5789]
[1756401711125,1.02846,4478.5,4478.4,1.5789]
[1756401712031,2.02946,4478.5,4478.4,1.5789]
[1756401712325,0.40186,4478.5,4478.4,1.5789]
[1756401713823,1.02846,4478.5,4478.4,1.5789]
[1756401714031,0.4019,4478.1,4478.0,3.2078]
[1756401714222,2.0295,4478.1,4478.0,3.2078]
[1756401714731,2.0295,4478.1,4478.0,3.8403]
[1756401715118,2.0295,4478.1,4478.0,4.7867]
[1756401715730,1.0285,4478.1,4478.0,4.7867]
[1756401716123,0.4019,4478.1,4478.0,4.7867]
[1756401716521,1.00469,4478.4,4478.3,0.6325]
[1756401716522,0.40188,4478.4,4478.3,0.6325]
[1756401716724,1.02848,4478.4,4478.3,1.5789]
[1756401717032,2.02948,4478.4,4478.3,1.5789]
[1756401718129,1.02848,4478.4,4478.3,1.5789]
[1756401718325,0.40188,4478.4,4478.3,1.5789]
[1756401718625,0.00463045,4478.6,4478.5,1.5789]
[1756401718833,0.00463045,4478.6,4478.5,4.7867]
[1756401720226,1.63223045,4478.6,4478.5,4.7867]
[1756401720632,1.63223045,4478.6,4478.5,3.8403]
[1756401721634,0.00463045,4478.6,4478.5,4.7867]
[1756401722228,0.00463045,4478.6,4478.5,6.3798058]
[1756401722435,0.00463045,4478.6,4478.5,4.7867]
[1756401723231,0.00463045,4478.6,4478.5,6.3798058]
[1756401723733,1.001,4479.3,4478.6,0.40185]
[1756401723931,1.6276,4479.1,4479.0,3.2078]
[1756401724325,1.6276,4479.1,4479.0,3.8403]
[1756401724530,0.6266,4479.1,4479.0,4.7867]
[1756401725325,1.0284,4479.2,4479.1,0.9464]
[1756401725531,2.0294,4479.2,4479.1,1.5789]
[1756401726043,0.6266,4479.2,4479.1,1.5789]
[1756401726242,0.40179,4479.3,4479.2,1.5809]
[1756401726536,1.97008,4479.4,4479.3,1.5809]
[1756401726936,1.97008,4479.4,4479.3,0.6598]
[1756401727138,1.97008,4479.4,4479.3,1.5809]
[1756401728138,1.97008,4479.4,4479.0,4.7887]
[1756401728139,1.97011,4479.1,4479.0,4.7887]
[1756401729342,1.97011,4479.1,4479.0,3.8676]
[1756401730335,1.97011,4479.1,4479.0,3.2078]
[1756401732145,1.01735,4478.6,4478.5,1.60227837]
[1756401732440,1.97018,4478.3,4478.2,1.5809]
[1756401733451,0.9528,4478.2,4478.1,1.60227837]
[1756401733649,1.97021,4477.9,4477.8,3.18317837]
[1756401734448,1.97021,4477.9,4477.8,1.5809]
[1756401735045,1.97021,4477.9,4477.8,0.9211]
[1756401735246,0.9528,4477.8,4477.7,2.52337837]
[1756401735446,1.5683,4477.8,4477.7,3.18317837]
[1756401735849,1.5683,4477.8,4477.7,1.5809]
[1756401736344,0.40191,4477.9,4477.7,1.5809]
[1756401736551,0.40191,4477.9,4477.8,1.5809]
[1756401737457,1.97021,4477.9,4477.8,1.5809]
[1756401737951,1.01741,4477.9,4477.8,1.5809]
[1756401738153,1.01741,4477.9,4477.8,3.18317837]
[1756401739054,1.97021,4477.9,4477.8,3.18317837]
[1756401739255,1.97021,4477.9,4477.8,1.5809]
[1756401740857,1.97021,4477.9,4477.8,0.6598]
[1756401741048,0.40194,4477.6,4477.5,4.81007837]
[1756401741353,1.97024,4477.6,4477.5,5.46987837]
[1756401741553,1.97024,4477.6,4477.5,6.39097837]
[1756401741755,1.97024,4477.6,4477.5,4.7887]
[1756401742055,1.97024,4477.6,4477.5,3.2078]
[1756401742452,0.40193,4477.8,4477.7,0.40193]
[1756401742648,1.9575,4478.4,4477.7,0.40193]
[1756401742649,0.40191,4477.9,4477.8,1.5809]
[1756401742850,0.40191,4477.9,4477.8,3.18354828]
[1756401744957,0.9528,4478.4,4477.8,2.66436828]
[1756401745157,0.40189,4478.2,4478.1,3.2078]
[1756401745455,0.40189,4478.2,4478.1,3.8676]
[1756401745854,1.01733,4478.8,4478.7,0.6598]
[1756401746049,1.01733,4478.8,4478.7,1.5809]
[1756401746248,1.97013,4478.8,4478.7,1.5809]
[1756401747549,0.40183,4478.8,4478.7,1.5809]
[1756401747955,0.9528,4479.3,4478.7,1.5809]
[1756401748154,0.9528,4479.3,4479.1,0.9211]
[1756401748459,33.18125,4479.7,4479.6,0.6598]
[1756401748661,33.18125,4479.7,4479.6,1.5809]
[1756401748862,1.97005,4479.7,4479.6,1.5809]
[1756401750256,0.40179,4479.3,4479.2,4.81026514]
[1756401750460,1.97009,4479.3,4479.2,3.8676]
[1756401751063,1.97009,4479.3,4479.2,3.2078]
[1756401751262,1.97009,4479.3,4479.2,4.7887]
[1756401751464,0.40179,4479.3,4479.2,4.7887]
[1756401751964,1.5683,4480.1,4480.0,1.5809]
[1756401752358,1.97002,4480.1,4480.0,1.5809]
[1756401754277,1.97002,4480.1,4480.0,0.6598]
[1756401754462,0.40174,4479.8,4479.7,3.2078]
[1756401754663,1.97004,4479.8,4479.7,3.2078]
[1756401754865,1.97009,4479.3,4479.2,3.2078]
[1756401755460,1.97009,4479.3,4479.2,3.8676]
[1756401755770,1.01729,4479.3,4479.2,4.7887]
[1756401755958,1.97009,4479.3,4479.2,4.7887]
[1756401756769,1.01729,4479.3,4479.2,4.7887]
[1756401756969,0.40179,4479.3,4479.2,4.7887]
[1756401757164,0.40178,4479.4,4479.3,0.9769]
[1756401757369,0.40178,4479.4,4479.3,1.6283]
[1756401758267,0.40178,4479.4,4479.3,2.03009]
[1756401758566,0.40177,4479.6,4479.5,0.6514]
[1756401758767,0.40177,4479.6,4479.5,1.6283]
[1756401760867,1.96817,4479.6,4479.5,1.6283]
[1756401761758,1.96817,4479.6,4479.5,0.6514]
[1756401762672,1.96819,4479.3,4479.2,4.8361]
[1756401763270,6.19144,4479.3,4479.2,2.73618]
[1756401763468,0.6071,4478.3,4478.2,3.23076514]
[1756401763666,1.5664,4478.3,4478.2,0.6514]
[1756401764368,1.9683,4478.0,4477.9,4.8361]
[1756401764866,1.9683,4478.0,4477.9,5.23801]
[1756401764867,0.6071,4478.0,4477.9,5.23801]
[1756401765067,0.6071,4478.0,4477.9,4.8361]
[1756401766177,0.4019,4478.1,4477.9,4.26111]
[1756401766365,0.4019,4478.1,4478.0,1.6283]
[1756401766566,0.9593,4478.8,4477.9,3.2078]
[1756401766866,0.40183,4478.8,4478.7,1.6283]
[1756401767060,0.9593,4479.7,4479.2,0.6514]
[1756401767260,1.96362,4480.0,4479.4,0.9769]
[1756401767466,1.96813,4480.0,4479.9,1.6283]
[1756401767868,1.00883,4480.0,4479.9,1.6283]
[1756401768367,0.1,4480.2,4480.0,1.37862]
[1756401768572,0.9593,4481.6,4481.3,0.6514]
[1756401768768,0.6071,4481.7,4481.6,0.6514]
[1756401768971,1.96797,4481.7,4481.6,0.6514]
[1756401769168,2.00727,4483.1,4481.6,0.6514]
[1756401769169,0.1808807,4483.7,4481.6,1.6283]
[1756401769365,5.49786719,4486.4,4484.3,10.03354]
[1756401769564,3.2078,4488.1,4486.2,3.2078]
[1756401769871,0.40094,4488.8,4486.6,0.40113]
[1756401770173,0.40094,4488.8,4485.0,10.03189]
[1756401770174,0.45418128,4488.2,4488.1,0.66984995]
[1756401770364,0.40097,4488.4,4488.1,0.3483185]
[1756401770570,0.40099,4488.3,4486.6,1.5981282]
[1756401770775,0.40099,4488.3,4486.7,0.55722601]
[1756401771068,0.40099,4488.3,4487.8,3.2078]
[1756401771273,0.9593,4488.7,4487.9,0.34826626]
[1756401771476,1.36025,4488.7,4488.0,0.34826626]
[1756401771672,1.36025,4488.7,4488.1,0.34826626]
[1756401771867,0.9593,4488.2,4487.8,3.2078]
[1756401772176,1.41348128,4487.9,4487.8,3.2078]
[1756401772379,1.41348128,4487.9,4487.8,3.55605852]
[1756401772571,0.9593,4487.9,4487.8,3.55605852]
[1756401774075,4.9593,4487.9,4487.2,3.2078]
[1756401774272,3.2078,4488.2,4487.2,3.2078]
[1756401774576,1.81455128,4487.3,4487.2,3.1878]
[1756401774780,1.81455128,4487.3,4487.2,3.53613199]
[1756401775174,0.9593,4487.2,4485.5,3.2078]
[1756401775474,0.40118,4486.1,4486.0,3.2078]
[1756401775669,0.40118,4486.1,4486.0,4.1847]
[1756401775871,1.81466128,4486.1,4486.0,3.2078]
[1756401776473,0.40114,4486.6,4486.0,3.2078]
[1756401776673,0.40111,4486.9,4486.5,3.2078]
[1756401776878,0.45418128,4486.7,4486.6,0.9769]
[1756401777378,0.40112,4486.8,4486.6,0.9769]
[1756401777574,0.40112,4486.8,4486.5,3.2078]
[1756401777878,0.85531128,4486.6,4486.5,3.2078]
[1756401778071,0.85531128,4486.6,4486.5,4.1847]
[1756401778671,0.85531128,4486.6,4486.5,3.2078]
[1756401778871,1.81461128,4486.6,4486.5,3.2078]
[1756401779278,0.85531128,4486.6,4486.5,4.1847]
[1756401779979,1.81461128,4486.6,4486.5,3.2078]
[1756401780280,1.36048,4486.1,4486.0,4.1847]
[1756401780476,0.85536128,4486.1,4486.0,4.1847]
[1756401780677,1.81466128,4486.1,4486.0,3.2078]
[1756401780878,0.40122,4485.6,4485.5,4.1847]
[1756401781276,0.85540128,4485.6,4485.5,4.1847]
[1756401781477,1.81470128,4485.6,4485.5,3.2078]
[1756401781681,0.9593,4485.1,4485.0,3.2078]
[1756401782077,1.41348128,4485.1,4485.0,3.2078]
[1756401782278,0.4013,4484.7,4484.6,0.9769]
[1756401782479,0.85548128,4484.7,4484.6,0.9769]
[1756401782687,0.4013,4484.7,4484.6,0.9769]
[1756401782883,1.3606,4484.7,4484.5,4.1847]
[1756401783084,0.45418128,4484.6,4484.5,4.1847]
[1756401783680,0.4013,4484.7,4484.6,0.9769]
[1756401784079,0.4013,4484.7,4484.6,1.18600116]
[1756401785085,1.3606,4484.7,4484.6,0.20910116]
[1756401786878,1.3606,4484.7,4484.5,2.65252]
[1756401786879,1.47598128,4484.6,4484.5,2.65252]
[1756401787084,1.42316,4484.1,4484.0,3.2078]
[1756401787285,1.42316,4484.1,4484.0,3.41693374]
[1756401787480,1.42316,4484.1,4484.0,4.43433374]
[1756401787481,0.40136,4484.1,4484.0,4.43433374]
[1756401787683,0.40136,4484.1,4484.0,5.39464524]
[1756401789481,2.52094128,4484.1,4484.0,0.53174524]
[1756401789681,2.52094128,4484.1,4484.0,0.20913374]
[1756401790080,6.52094128,4484.1,4484.0,0.20913374]
[1756401790284,1.4232,4483.6,4483.5,3.2078]
[1756401790587,1.00345,4484.0,4482.5,3.2078]
[1756401790588,1.42329,4482.6,4482.5,3.2078]
[1756401790776,0.40149,4482.7,4482.5,3.2078]
[1756401790981,0.85567128,4482.7,4482.6,1.0174]
[1756401791181,0.40149,4482.7,4482.6,1.0174]
[1756401791382,0.40148,4482.8,4482.5,3.2078]
[1756401791576,0.40149,4482.7,4482.6,1.0174]
[1756401792882,2.06689,4482.7,4482.6,1.0174]
[1756401793082,2.06689,4482.7,4482.6,4.8629]
[1756401793083,1.04509,4482.7,4482.6,4.8629]
[1756401793586,2.06689,4482.7,4482.6,4.8629]
[1756401794685,0.40149,4482.7,4482.6,4.8629]
[1756401795487,1.0218,4483.3,4482.6,4.8629]
[1756401795488,0.40148,4482.8,4482.6,4.8629]
[1756401795691,0.45418128,4482.7,4482.6,4.8629]
[1756401796187,0.40148,4482.8,4482.7,1.6551]
[1756401796690,1.87746128,4482.8,4482.7,1.6551]
[1756401796884,1.87746128,4482.8,4482.2,1.60438297]
[1756401796885,0.40152,4482.3,4482.2,1.60438297]
[1756401797190,0.40152,4482.3,4482.2,2.56609047]
[1756401797383,1.0218,4482.8,4482.2,1.3414075]
[1756401797583,3.2078,4483.7,4482.3,1.9791075]
[1756401797785,0.85561128,4483.3,4483.2,1.6551]
[1756401797989,0.40141,4483.6,4483.4,0.40142]
[1756401798188,0.40141,4483.6,4483.5,1.6551]
[1756401798381,3.2078,4483.7,4483.5,1.6551]
[1756401798382,3.6092,4483.7,4483.6,1.6551]
[1756401798684,0.4014,4483.7,4483.6,1.6551]
[1756401799291,3.2078,4484.2,4483.6,0.6377]
[1756401799493,0.85555128,4484.0,4483.9,1.6551]
[1756401799688,3.2078,4484.2,4483.9,2.05648]
[1756401799985,0.40129,4484.9,4484.8,1.0174]
[1756401800287,0.40131,4484.6,4484.5,0.59528668]
[1756401800488,2.06671,4484.6,4484.5,0.59528668]
[1756401800688,2.52089128,4484.6,4484.5,2.25038668]
[1756401801381,1.49909128,4484.6,4484.5,1.98046256]
[1756401801693,0.4013,4484.8,4484.6,1.41871]
[1756401801992,0.45418128,4484.9,4484.8,1.6551]
[1756401802192,0.45418128,4484.9,4484.8,1.9806253]
[1756401802389,0.40125,4485.3,4485.2,1.6551]
[1756401802694,0.40124,4485.5,4485.4,1.6551]
[1756401802995,1.0218,4485.4,4485.3,0.59616334]
[1756401803289,0.85545128,4485.1,4485.0,2.44881582]
[1756401803490,0.85544128,4485.3,4485.0,1.46790535]
[1756401803794,0.45418128,4485.3,4485.2,1.6551]
[1756401804093,1.6654,4485.3,4485.2,1.46790535]
[1756401804300,2.11958128,4485.3,4485.2,1.6256541]
[1756401804595,2.11958128,4485.3,4485.2,2.77637373]
[1756401805095,3.2078,4485.9,4485.8,0.6377]
[1756401805289,3.2078,4485.9,4485.8,1.23462768]
[1756401805290,4.8732,4485.9,4485.8,1.23462768]
[1756401805488,5.2744,4485.9,4485.8,0.59692768]
[1756401805688,5.2744,4485.9,4485.7,0.59692768]
[1756401806290,5.6654,4485.8,4485.7,0.59692768]
[1756401806591,1.04484,4485.4,4485.3,0.79590358]
[1756401806793,2.06667,4485.1,4485.0,1.43360358]
[1756401806998,2.06667,4485.1,4485.0,1.12328672]
[1756401807294,2.52085128,4485.1,4485.0,0.79590358]
[1756401809090,0.4013,4484.8,4484.7,2.8520982]
[1756401809292,0.4013,4484.8,4484.7,2.17973671]
[1756401809293,0.85548128,4484.8,4484.7,2.17973671]
[1756401809497,2.0667,4484.8,4484.7,1.51171182]
[1756401809996,1.6654,4484.7,4484.6,1.19617707]
[1756401810298,2.06671,4484.7,4484.6,1.19632447]
[1756401810888,2.06671,4484.7,4484.6,1.51203423]
[1756401810889,9.27451,4484.7,4484.6,1.51203423]
[1756401811088,0.40134,4484.3,4484.2,1.6551]
[1756401811293,0.40134,4484.3,4484.2,1.97082221]
[1756401811495,0.85552128,4484.3,4484.2,1.97082221]
[1756401812894,2.52092128,4484.3,4484.2,0.31572221]
[1756401813202,2.52092128,4484.3,4484.2,1.51327931]
[1756401813396,2.52092128,4484.3,4484.2,1.1975571]
[1756401813597,1.0218,4484.2,4484.1,1.1975571]
[1756401813794,2.06676,4484.1,4484.0,4.4053571]
[1756401813994,2.52094128,4484.1,4484.0,5.0430571]
[1756401814299,2.52094128,4484.1,4484.0,4.4053571]
[1756401815200,2.52094128,4484.1,4484.0,6.0604571]
[1756401816003,1.49914128,4484.1,4483.9,1.1975571]
[1756401816200,2.01298128,4484.0,4483.9,1.1975571]
[1756401816399,2.41435128,4484.0,4483.9,0.79859452]
[1756401816599,1.96021,4483.6,4483.5,0.6941471]
[1756401816796,2.41439128,4483.6,4483.5,0.6941471]
[1756401817401,1.48109128,4483.6,4483.4,3.2078]
[1756401817600,2.01298128,4483.5,4483.4,3.2078]
[1756401817898,1.96026,4483.0,4482.9,3.2078]
[1756401818300,2.41444128,4483.0,4482.9,3.8285]
[1756401818804,2.41444128,4483.0,4482.9,4.8275]
[1756401819703,1.48114128,4483.0,4482.9,4.8275]
[1756401820500,0.40146,4483.0,4482.9,4.8275]
[1756401821401,0.40146,4483.0,4482.9,8.8275]
[1756401821602,0.40145,4483.2,4483.0,0.40146]
[1756401821811,0.40144,4483.3,4483.2,1.6197]
[1756401822101,0.45418128,4483.9,4483.7,0.6207]
[1756401822306,0.45418128,4483.9,4483.8,1.6197]
[1756401822307,1.96018,4483.9,4483.8,1.6197]
[1756401822502,0.40138,4483.9,4483.8,1.6197]
[1756401824101,1.96018,4483.9,4483.8,1.6197]
[1756401826610,1.96018,4483.9,4483.3,0.40143]
[1756401826611,1.96023,4483.4,4483.3,0.999]
[1756401826906,1.96024,4483.2,4483.1,0.6207]
[1756401827104,1.48112128,4483.2,4483.1,1.6197]
[1756401827303,1.02694,4483.2,4483.1,1.6197]
[1756401828403,1.96024,4483.2,4483.1,1.6197]
[1756401828599,1.96024,4483.2,4483.1,0.6207]
[1756401828804,1.96024,4483.2,4483.1,1.6197]
[1756401829708,0.40145,4483.2,4483.1,0.6207]
[1756401830011,0.40145,4483.2,4483.0,3.60926]
[1756401830012,1.5588,4483.7,4483.6,1.6197]
[1756401830207,0.9333,4484.4,4483.6,2.0211]
[1756401830510,0.85557128,4483.8,4483.7,1.6197]
[1756401830713,1.78887128,4483.8,4483.7,1.6197]
[1756401830901,1.33469,4483.8,4483.7,1.6197]
[1756401831306,1.96019,4483.8,4483.7,1.6197]
[1756401831507,2.41437128,4483.8,4483.7,0.6207]
[1756401831712,1.96021,4483.6,4483.5,3.8285]
[1756401831906,2.41439128,4483.6,4483.5,4.8275]
[1756401832101,1.96021,4483.6,4483.5,4.8275]
[1756401832512,1.02691,4483.6,4483.5,4.8275]
[1756401832713,0.40141,4483.6,4483.5,4.8275]
[1756401833803,0.4014,4483.7,4483.6,0.40141]
[1756401834007,0.4014,4483.7,4483.6,2.02111]
[1756401834421,0.4014,4483.7,4483.6,1.6197]
[1756401835107,1.0269,4483.7,4483.6,1.6197]
[1756401835315,1.96022,4483.5,4483.4,1.59988793]
[1756401835612,1.96022,4483.5,4483.0,0.999]
[1756401835613,1.5588,4483.4,4483.3,1.59988793]
[1756401835807,1.5588,4483.2,4483.1,2.22058793]
[1756401836014,1.5588,4483.2,4483.1,3.21958793]
[1756401836214,1.5588,4483.2,4483.1,0.6207]
[1756401836409,1.5588,4483.2,4483.1,1.6197]
[1756401836916,1.5588,4483.2,4483.1,0.6207]
[1756401838314,1.5588,4483.2,4483.1,1.6197]
[1756401839215,1.5588,4483.2,4483.1,3.21958793]
[1756401839409,1.02696,4483.0,4482.9,4.80768793]
[1756401839610,1.96026,4483.0,4482.9,3.8285]
[1756401839815,2.41444128,4483.0,4482.9,4.8275]
[1756401840007,2.41444128,4483.0,4482.9,3.8285]
[1756401840209,2.41444128,4483.0,4482.9,3.2078]
[1756401841510,2.41444128,4483.0,4482.4,3.2078]
[1756401841511,0.6255,4482.8,4482.4,3.2078]
[1756401841711,0.6255,4482.8,4482.1,0.999]
[1756401841712,1.02703,4482.3,4482.2,1.59988793]
[1756401841915,0.9333,4482.2,4482.1,1.59988793]
[1756401842114,2.01298128,4482.2,4482.1,1.6197]
[1756401842315,1.5588,4482.2,4482.1,1.6197]
[1756401842512,0.9333,4482.0,4481.9,0.04019]
[1756401842712,6.01298128,4482.0,4481.9,0.04019]
[1756401842912,2.01298128,4482.0,4481.9,0.04019]
[1756401845016,2.01298128,4482.0,4481.9,1.2407217]
[1756401846117,2.01298128,4482.0,4481.9,0.04019]
[1756401846518,1.95596,4481.9,4481.8,1.2005317]
[1756401846717,2.41014128,4481.9,4481.8,1.2005317]
[1756401846913,1.95596,4481.9,4481.8,1.2005317]
[1756401847118,1.02806,4481.9,4481.7,1.2005317]
[1756401847315,0.40156,4481.9,4481.7,2.8339317]
[1756401847514,0.40156,4481.9,4481.8,1.6334]
[1756401849326,0.40156,4482.0,4481.9,2.03496]
[1756401849830,0.40156,4482.0,4481.9,3.23328793]
[1756401850231,1.02806,4482.0,4481.9,1.6334]
[1756401850432,1.95596,4482.0,4481.9,1.6334]
[1756401851330,0.40156,4482.0,4481.9,1.6334]
[1756401851632,1.02806,4482.0,4481.9,1.6334]
[1756401851825,1.95596,4482.0,4481.9,1.6334]
[1756401852427,0.40156,4482.0,4481.9,1.6334]
[1756401853735,0.40156,4482.0,4481.9,5.6334]
[1756401853934,0.40153,4482.3,4482.2,0.6561]
[1756401854131,0.40153,4482.3,4482.2,1.6334]
[1756401854734,1.02803,4482.3,4482.2,1.6334]
[1756401854926,0.40153,4482.3,4482.2,1.6334]
[1756401856230,1.02803,4482.3,4482.2,1.6334]
[1756401856431,1.95593,4482.3,4482.2,1.6334]
[1756401856826,0.40153,4482.3,4482.2,1.6334]
[1756401857329,1.95593,4482.3,4482.2,1.6334]
[1756401857729,2.41011128,4482.3,4482.2,0.6561]
[1756401857924,2.41011128,4482.3,4482.2,1.6334]
[1756401858225,1.95593,4482.3,4482.2,1.6334]
[1756401858433,2.41011128,4482.3,4482.2,1.6334]
[1756401858935,1.95596,4481.9,4481.8,4.8412]
[1756401859634,0.40156,4481.9,4481.8,4.8412]
[1756401861133,0.40156,4482.0,4481.9,1.6334]
[1756401861528,0.40156,4482.0,4481.9,2.03496]
[1756401861730,0.40156,4482.0,4481.9,3.23328793]
[1756401861929,0.40156,4482.0,4481.9,2.03496]
[1756401862126,0.40156,4482.0,4481.9,3.23328793]
[1756401862736,0.40156,4482.0,4481.9,3.63484793]
[1756401862933,0.40156,4482.0,4481.9,3.23328793]
[1756401863636,0.40156,4482.0,4481.9,2.03496]
[1756401863835,0.40156,4482.0,4481.9,3.23350479]
[1756401864032,2.41014128,4482.0,4481.9,0.6561]
[1756401864233,0.9279,4481.9,4481.8,4.80790479]
[1756401864436,2.00858128,4481.9,4481.8,6.44130479]
[1756401864737,0.40156,4482.0,4481.9,1.6334]
[1756401864932,1.95596,4482.0,4481.9,1.6334]
[1756401865233,2.41014128,4482.0,4481.9,3.23350479]
[1756401865937,2.41014128,4482.0,4481.9,1.6334]
[1756401866437,0.85574128,4482.0,4481.9,3.23350479]
[1756401866636,1.48224128,4482.0,4481.9,1.6334]
[1756401866838,2.41014128,4482.0,4481.9,1.6334]
[1756401867031,2.41014128,4482.0,4481.9,3.23350479]
[1756401867836,2.41014128,4482.0,4481.9,1.6334]
[1756401868341,2.41014128,4482.0,4481.9,1.94129439]
[1756401869541,0.40156,4482.0,4481.9,1.9414098]
[1756401870542,0.40156,4482.0,4481.9,1.94142024]
[1756401870941,1.95596,4482.0,4481.9,1.94142024]
[1756401871335,1.95596,4482.0,4481.9,1.94154063]
[1756401872842,0.40156,4482.0,4481.9,1.94154063]
[1756401873445,0.40156,4482.0,4481.9,2.34310063]
[1756401873846,0.40156,4482.0,4481.9,1.94154063]
[1756401875038,0.40154,4482.1,4481.9,0.96424063]
[1756401875237,0.40154,4482.1,4482.0,1.28544063]
[1756401875443,1.95594,4482.1,4482.0,1.94154063]
[1756401876649,1.02804,4482.1,4482.0,1.94154063]
[1756401878044,1.02804,4482.1,4482.0,2.34309063]
[1756401878239,0.40154,4482.1,4482.0,2.34309063]
[1756401879143,0.40153,4482.3,4482.2,1.95013]
[1756401879438,0.85571128,4482.3,4482.2,2.25862303]
[1756401879639,0.40153,4482.3,4482.2,2.25862303]
[1756401879837,0.9366,4482.4,4482.3,0.40153]
[1756401880051,0.40151,4482.5,4482.4,1.95012]
[1756401880251,0.40151,4482.5,4482.4,3.55615099]
[1756401880846,2.45069128,4482.5,4482.4,2.20903099]
[1756401881446,2.45069128,4482.5,4482.4,3.55615099]
[1756401881648,0.40151,4482.5,4482.4,3.55615099]
[1756401882651,1.99649,4482.8,4482.7,1.95009]
[1756401882847,0.9366,4483.4,4482.7,0.30850486]
[1756401883042,1.595,4483.1,4483.0,4.7564]
[1756401883242,1.00346,4483.9,4483.0,5.06490486]
[1756401883448,0.45418128,4483.1,4483.0,4.1534]
[1756401883649,0.85563128,4483.2,4483.0,5.46613322]
[1756401883848,0.85563128,4483.2,4483.1,1.85687322]
[1756401884052,0.40145,4483.2,4483.1,1.85687322]
[1756401884349,0.9366,4483.4,4483.1,1.85687322]
[1756401884552,1.595,4483.7,4483.6,0.603]
[1756401884857,1.595,4484.2,4484.1,1.5486]
[1756401885054,1.33794,4484.4,4484.1,5.99806673]
[1756401885360,0.40135,4484.2,4484.1,3.2078]
[1756401885652,1.99635,4484.2,4484.1,3.8108]
[1756401886043,1.99635,4484.2,4484.1,4.7564]
[1756401886444,1.595,4484.2,4484.1,4.7564]
[1756401886749,0.6584,4484.5,4484.4,1.5486]
[1756401886953,1.05974,4484.5,4484.4,1.5486]
[1756401887454,1.99634,4484.5,4484.4,1.5486]
[1756401888351,2.45052128,4484.5,4484.4,1.5486]
[1756401889558,2.45052128,4484.5,4484.4,2.74674033]
[1756401889756,0.85552128,4484.5,4484.4,2.74674033]
[1756401889957,1.11258128,4484.5,4484.4,1.5486]
[1756401890152,2.04918128,4484.5,4484.4,1.5486]
[1756401890359,2.04918128,4484.5,4484.1,3.2078]
[1756401890360,1.99635,4484.2,4484.1,4.7564]
[1756401890847,0.40134,4484.4,4484.1,5.15776]
[1756401891048,3.2078,4485.2,4484.2,0.603]
[1756401891251,3.2078,4485.2,4484.1,3.2078]
[1756401891252,1.99627,4485.1,4485.0,0.603]
[1756401891452,1.99627,4485.1,4484.9,0.79803963]
[1756401891656,2.04918128,4485.0,4484.9,1.5486]
[1756401893859,2.04918128,4485.0,4484.9,2.34593089]
[1756401894055,2.04918128,4485.0,4484.9,1.5486]
[1756401894257,2.04918128,4485.0,4484.8,0.79733089]
[1756401894258,1.05969,4484.9,4484.8,0.79733089]
[1756401894456,2.45047128,4484.9,4484.8,0.79733089]
[1756401894760,1.99629,4484.9,4484.8,0.79733089]
[1756401895362,1.99629,4484.9,4484.8,1.40033089]
[1756401895555,1.99627,4485.1,4485.0,0.603]
[1756401895859,2.45045128,4485.1,4485.0,2.74565945]
[1756401896154,1.595,4485.6,4485.5,0.603]
[1756401896358,0.6584,4485.6,4485.5,2.34520952]
[1756401896550,4.1444,4485.9,4485.6,0.9456]
[1756401896757,2.04918128,4485.8,4485.7,1.5486]
[1756401899159,1.99622,4485.7,4485.5,1.19705945]
[1756401899355,1.05962,4485.7,4485.6,0.603]
[1756401899555,1.05962,4485.7,4485.6,1.5486]
[1756401899962,1.99622,4485.7,4485.6,1.5486]
[1756401900357,0.9366,4486.2,4485.7,0.9456]
[1756401900661,1.99619,4486.0,4485.9,0.603]
[1756401900858,2.45037128,4486.0,4485.9,0.603]
[1756401901257,2.45037128,4486.0,4485.9,1.5486]
[1756401901761,2.45037128,4486.0,4485.9,0.603]
[1756401902063,1.99622,4485.7,4485.6,0.79528411]